bitfinex/quotes_SOLUSD_20241001
["timestamp","ask_amount","ask_price","bid_price","bid_amount"]
[1727802766674,6.477,147.0,146.94,17.0129]
[1727802767061,6.8032,146.99,146.94,23.8183]
[1727802767381,6.8032,146.99,146.91,17.0171]
[1727802767382,20.0,146.99,146.91,17.0171]
[1727802767678,6.477,147.0,146.91,17.0171]
[1727802768475,6.8035,146.99,146.94,6.8054]
[1727802768668,6.8037,146.98,146.93,6.8059]
[1727802769067,6.8032,146.99,146.94,6.8054]
[1727802769286,6.477,147.0,146.91,17.0171]
[1727802769575,6.8045,146.97,146.92,6.8059]
[1727802769967,6.477,147.0,146.91,17.0171]
[1727802770281,6.8046,146.96,146.92,6.8063]
[1727802770970,6.8046,146.96,146.91,17.0171]
[1727802770971,20.0,146.99,146.88,17.0202]
[1727802771173,6.8049,146.96,146.91,6.8067]
[1727802771755,20.0,146.99,146.88,17.0202]
[1727802771955,20.0,146.99,146.87,1.4242153]
[1727802771956,20.0,146.99,146.9,17.0174]
[1727802772477,6.8051,146.95,146.9,23.8246]
[1727802772975,6.8046,146.96,146.91,6.8068]
[1727802773682,6.8042,146.97,146.92,6.8064]
[1727802773890,6.8042,146.97,146.9,17.0174]
[1727802774186,6.8041,146.97,146.92,17.0152]
[1727802774356,6.8041,146.97,146.92,23.8214]
[1727802774559,6.477,147.0,146.92,17.0152]
[1727802774560,6.8046,146.96,146.92,17.0152]
[1727802774777,6.8056,146.94,146.89,23.8267]
[1727802774977,6.8056,146.94,146.89,17.0193]
[1727802775163,6.8056,146.94,146.89,23.827]
[1727802775361,6.8061,146.93,146.89,17.0193]
[1727802775564,6.8056,146.94,146.89,23.827]
[1727802775969,20.0,146.96,146.89,17.0193]
[1727802776167,6.8041,146.97,146.93,6.8057]
[1727802776375,6.477,147.0,146.91,17.0163]
[1727802776376,6.8051,146.95,146.91,17.0163]
[1727802777066,6.8051,146.95,146.91,23.8231]
[1727802777265,20.0,146.97,146.88,17.0203]
[1727802777472,6.8054,146.95,146.9,6.8072]
[1727802777767,6.8054,146.95,146.91,6.8068]
[1727802778161,20.0,146.99,146.91,6.8068]
[1727802778385,6.8044,146.97,146.92,6.8064]
[1727802778679,6.8042,146.97,146.92,6.8063]
[1727802778879,6.8045,146.96,146.91,6.8067]
[1727802779361,6.8041,146.97,146.92,6.8062]
[1727802779687,20.0,146.99,146.9,17.0172]
[1727802779877,37.0087,146.99,146.87,1.4242153]
[1727802780081,6.807,146.91,146.87,25.2541153]
[1727802780259,17.0123,146.96,146.87,18.4455153]
[1727802780456,20.0,146.95,146.87,1.4242153]
[1727802780682,20.0,146.95,146.9,6.807]
[1727802780989,6.805,146.95,146.9,6.8069]
[1727802781199,17.011,146.97,146.87,1.4242153]
[1727802781486,6.8082,146.88,146.87,1.4242153]
[1727802781880,26.8082,146.88,146.87,1.4242153]
[1727802782262,6.8082,146.88,146.87,1.4242153]
[1727802783087,6.8074,146.9,146.87,1.4242153]
[1727802783380,6.8068,146.92,146.87,8.2328153]
[1727802783586,6.6236,146.93,146.87,8.2328153]
[1727802783782,6.6236,146.93,146.87,1.4242153]
[1727802783983,6.807,146.91,146.87,1.4242153]
[1727802784188,6.8067,146.92,146.87,8.2328153]
[1727802784487,6.807,146.91,146.87,1.4242153]
[1727802785191,6.6236,146.93,146.92,6.8064]
[1727802785367,6.8041,146.97,146.93,6.8059]
[1727802785368,6.6602,146.97,146.93,6.8059]
[1727802785573,6.8049,146.96,146.91,6.8068]
[1727802785775,6.6602,146.97,146.87,1.4242153]
[1727802786281,6.6602,146.97,146.88,17.0198]
[1727802786589,6.6602,146.97,146.88,23.8276]
[1727802786786,6.8065,146.92,146.88,17.0198]
[1727802787182,6.8069,146.91,146.87,1.4242153]
[1727802787487,20.0,146.94,146.87,1.4242153]
[1727802787881,6.8082,146.88,146.87,1.4242153]
[1727802788996,20.0,146.94,146.87,1.4242153]
[1727802789194,13.3665,146.88,146.87,1.4242153]
[1727802789787,6.5583,146.88,146.87,1.4242153]
[1727802789991,13.3665,146.88,146.87,1.4242153]
[1727802790191,33.3665,146.88,146.87,1.4242153]
[1727802790491,13.3665,146.88,146.87,1.4242153]
[1727802790668,33.3665,146.88,146.87,1.4242153]
[1727802792276,6.5583,146.88,146.87,1.4242153]
[1727802792601,13.3665,146.88,146.87,1.4242153]
[1727802793890,33.3665,146.88,146.87,1.4242153]
[1727802794286,6.5583,146.88,146.87,1.4242153]
[1727802794596,13.3665,146.88,146.87,1.4242153]
[1727802795892,33.3665,146.88,146.87,1.4242153]
[1727802801597,33.3665,146.88,146.76,15.4137]
[1727802801598,6.8119,146.81,146.76,15.4137]
[1727802801797,17.0243,146.85,146.74,6.3761]
[1727802801798,6.8122,146.8,146.74,6.3761]
[1727802802097,6.8115,146.81,146.74,23.4123]
[1727802802296,6.8125,146.79,146.74,23.8509]
[1727802802601,20.0,146.86,146.77,6.8132]
[1727802802602,6.8111,146.82,146.77,6.8132]
[1727802802900,6.8107,146.83,146.78,6.8128]
[1727802803080,6.8107,146.83,146.76,17.0339]
[1727802803402,6.5583,146.88,146.8,17.0291]
[1727802803708,6.8102,146.84,146.79,6.8121]
[1727802803993,6.8102,146.84,146.78,6.8128]
[1727802804190,6.8102,146.84,146.77,17.0328]
[1727802804388,6.8106,146.83,146.78,6.8128]
[1727802804592,6.811,146.82,146.77,17.0328]
[1727802804805,6.8116,146.81,146.74,17.0366]
[1727802805093,6.811,146.82,146.75,1.36256451]
[1727802805300,6.811,146.82,146.77,6.8132]
[1727802805600,20.0,146.85,146.75,6.8142]
[1727802805801,6.8116,146.81,146.75,8.176846]
[1727802806002,6.811,146.82,146.76,17.034]
[1727802806399,20.0,146.85,146.77,6.8133]
[1727802806592,20.0,146.85,146.76,17.034]
[1727802806792,6.3217,146.8,146.72,0.846113]
[1727802806994,6.3217,146.8,146.74,17.036]
[1727802807199,6.3217,146.84,146.74,17.036]
[1727802807379,6.8128,146.79,146.74,17.036]
[1727802807583,6.8129,146.78,146.73,6.8148]
[1727802807996,6.8129,146.78,146.72,0.846113]
[1727802808310,20.0,146.8,146.72,0.846113]
[1727802808482,6.8141,146.76,146.72,0.846113]
[1727802808814,6.8147,146.74,146.72,0.846113]
[1727802809185,6.8143,146.75,146.72,0.846113]
[1727802810087,6.8152,146.73,146.72,0.846113]
[1727802810707,26.8152,146.73,146.72,0.846113]
[1727802811211,20.0,146.76,146.72,0.846113]
[1727802811424,6.8152,146.73,146.72,0.846113]
[1727802811583,26.8152,146.73,146.72,0.846113]
[1727802811784,6.8152,146.73,146.72,0.846113]
[1727802812288,6.8147,146.74,146.72,0.846113]
[1727802812882,20.0,146.76,146.72,0.846113]
[1727802813084,6.8151,146.74,146.72,0.846113]
[1727802813396,6.8152,146.73,146.72,0.846113]
[1727802813782,23.776884,146.73,146.6,17.0526]
[1727802814008,6.819,146.65,146.6,23.8734]
[1727802814186,6.819,146.65,146.6,17.0526]
[1727802814590,6.8195,146.64,146.59,6.8216]
[1727802814886,6.8199,146.63,146.58,6.8221]
[1727802815088,6.8203,146.63,146.57,25.3029153]
[1727802815406,6.8209,146.61,146.57,1.4242153]
[1727802815585,6.8208,146.61,146.57,1.4242153]
[1727802815784,20.0,146.65,146.57,1.4242153]
[1727802815999,6.8189,146.66,146.57,1.4242153]
[1727802816206,20.0,146.69,146.64,6.8193]
[1727802816387,13.1641,146.7,146.64,6.8193]
[1727802816580,6.3471,146.7,146.64,6.8193]
[1727802816886,6.3471,146.7,146.63,23.8687]
[1727802817088,6.8174,146.69,146.63,23.8687]
[1727802817298,22.4357,146.74,146.64,23.776884]
[1727802817504,6.8156,146.73,146.67,6.8176]
[1727802817689,22.4357,146.74,146.63,23.776884]
[1727802818095,17.0382,146.73,146.62,15.7438]
[1727802818295,6.8184,146.67,146.62,15.7438]
[1727802818508,17.0382,146.73,146.59,23.8752]
[1727802818509,6.8177,146.68,146.59,17.0539]
[1727802818800,6.8181,146.67,146.61,6.8207]
[1727802819003,20.0,146.72,146.57,17.8583153]
[1727802819305,20.0,146.68,146.57,17.8583153]
[1727802819483,6.8208,146.61,146.57,17.8583153]
[1727802819686,17.0465,146.66,146.57,17.8583153]
[1727802820189,6.8205,146.62,146.58,1.36423852]
[1727802820390,6.8205,146.62,146.57,24.6809153]
[1727802820613,23.6892,146.66,146.57,1.4242153]
[1727802820913,6.8209,146.61,146.57,1.4242153]
[1727802821082,6.8202,146.63,146.57,8.2464153]
[1727802821410,6.8221,146.59,146.57,1.4242153]
[1727802821589,6.8222,146.58,146.57,1.4242153]
[1727802823187,26.8222,146.58,146.57,1.4242153]
[1727802823605,33.3438,146.58,146.57,1.4242153]
[1727802824802,42.4381,146.58,146.46,8.0922865]
[1727802825006,6.8258,146.51,146.46,8.0922865]
[1727802825313,6.826,146.5,146.46,8.0922865]
[1727802825607,17.061,146.54,146.46,8.0922865]
[1727802826007,42.4381,146.58,146.46,8.0922865]
[1727802826008,17.0568,146.57,146.46,8.0922865]
[1727802826208,20.0,146.56,146.46,25.1607865]
[1727802826411,6.8249,146.53,146.48,6.8268]
[1727802826611,6.8249,146.53,146.46,25.1607865]
[1727802826612,6.8251,146.52,146.47,6.8272]
[1727802827000,20.0,146.56,146.46,25.1607865]
[1727802827210,20.0,146.56,146.46,31.9884865]
[1727802827422,6.825,146.52,146.46,31.9884865]
[1727802827598,6.5216,146.58,146.47,1.36530563]
[1727802827919,6.5216,146.58,146.5,17.0646]
[1727802828218,6.8239,146.55,146.5,17.0646]
[1727802828514,6.8232,146.56,146.5,23.8901]
[1727802829016,6.8216,146.6,146.53,17.0613]
[1727802829189,6.8219,146.59,146.54,6.8239]
[1727802829392,29.241249,146.62,146.54,6.8239]
[1727802829393,6.4575,146.62,146.55,17.0583]
[1727802829614,6.8208,146.61,146.55,17.0583]
[1727802829792,6.8213,146.6,146.55,17.0583]
[1727802829991,6.8224,146.58,146.53,6.8245]
[1727802830203,6.8218,146.59,146.53,6.8243]
[1727802830416,6.4575,146.62,146.51,6.1517]
[1727802830417,23.509,146.62,146.51,6.1517]
[1727802830713,23.509,146.62,146.52,6.8246]
[1727802830917,23.509,146.62,146.49,16.1679]
[1727802830918,6.8216,146.6,146.49,50.2985]
[1727802831091,6.4575,146.62,146.53,17.0604]
[1727802831292,6.4575,146.62,146.57,0.68226786]
[1727802831293,6.8223,146.58,146.57,0.68226786]
[1727802833226,26.8223,146.58,146.57,0.68226786]
[1727802833726,6.8223,146.58,146.57,0.68226786]
[1727802833902,26.8223,146.58,146.57,0.68226786]
[1727802834306,6.8223,146.58,146.57,0.68226786]
[1727802834510,26.8223,146.58,146.57,0.68226786]
[1727802836796,6.8223,146.58,146.57,0.68226786]
[1727802837219,6.8217,146.59,146.57,0.68226786]
[1727802837426,6.8213,146.6,146.57,0.68226786]
[1727802837620,6.8214,146.6,146.57,0.68226786]
[1727802837822,6.8218,146.59,146.57,0.68226786]
[1727802838123,6.8222,146.58,146.57,0.68226786]
[1727802839207,26.8222,146.58,146.57,0.68226786]
[1727802841337,13.2779,146.62,146.58,6.8222]
[1727802841509,13.2779,146.62,146.57,0.68226786]
[1727802841510,6.8209,146.61,146.57,0.68226786]
[1727802841713,6.4575,146.62,146.57,0.68226786]
[1727802841919,6.8222,146.58,146.57,0.68226786]
[1727802843620,26.8222,146.58,146.57,0.68226786]
[1727802843819,6.8222,146.58,146.57,0.68226786]
[1727802844049,26.8222,146.58,146.57,0.68226786]
[1727802845120,6.8222,146.58,146.57,0.68226786]
[1727802846615,26.8222,146.58,146.57,0.68226786]
[1727802847020,6.4575,146.62,146.57,0.68226786]
[1727802847342,20.48,146.64,146.57,0.68226786]
[1727802847515,6.8222,146.58,146.57,0.68226786]
[1727802847929,6.8199,146.63,146.57,0.68226786]
[1727802848136,6.8195,146.64,146.59,6.8213]
[1727802848336,13.08107751,146.66,146.58,6.8218]
[1727802848337,6.8199,146.63,146.58,6.8218]
[1727802848638,33.56107751,146.66,146.57,0.68226786]
[1727802848838,13.08107751,146.66,146.57,0.68226786]
[1727802849067,13.08107751,146.66,146.57,7.50446786]
[1727802849237,6.8208,146.61,146.57,0.68226786]
[1727802849554,6.8203,146.62,146.57,7.50476786]
[1727802849752,13.08107751,146.66,146.57,0.68226786]
[1727802849953,6.8219,146.59,146.57,0.68226786]
[1727802850162,6.8222,146.58,146.57,0.68226786]
[1727802851038,6.8218,146.59,146.57,0.68226786]
[1727802851661,6.8222,146.58,146.57,0.68226786]
[1727802851833,26.8222,146.58,146.57,0.68226786]
[1727802852639,32.9608,146.58,146.57,0.68226786]
[1727802853248,56.737684,146.58,146.57,0.68226786]
[1727802853541,32.9608,146.58,146.57,0.68226786]
[1727802855065,32.9608,146.58,146.57,6.786e-05]
[1727802856963,56.737684,146.58,146.57,6.786e-05]
[1727802857360,32.9608,146.58,146.57,6.786e-05]
[1727802857542,6.8264,146.49,146.46,8.0922865]
[1727802857742,34.1174,146.56,146.46,8.0922865]
[1727802857743,26.825,146.52,146.47,6.8272]
[1727802857957,6.8263,146.5,146.46,8.0922865]
[1727802858146,6.826,146.5,146.46,8.0922865]
[1727802858347,6.8259,146.5,146.46,14.9198865]
[1727802858555,20.0,146.55,146.48,6.8268]
[1727802858556,6.8253,146.52,146.48,6.8268]
[1727802858872,6.8246,146.53,146.48,6.8268]
[1727802859166,6.825,146.52,146.48,6.8268]
[1727802859363,6.825,146.52,146.47,6.8272]
[1727802859662,6.8255,146.51,146.47,6.8272]
[1727802859838,20.0,146.53,146.46,25.1609865]
[1727802860041,6.8255,146.51,146.46,31.9883865]
[1727802860252,20.0,146.53,146.46,8.0922865]
[1727802860666,6.8259,146.5,146.46,8.0922865]
[1727802861037,6.8264,146.49,146.46,8.0922865]
[1727802861556,17.0567,146.57,146.46,8.0922865]
[1727802861967,6.8244,146.54,146.49,6.826]
[1727802862747,6.94911237,146.58,146.5,1.36517907]
[1727802862960,6.94911237,146.58,146.56,6.823]
[1727802863166,6.94911237,146.58,146.53,17.0604]
[1727802863167,17.0503,146.63,146.53,17.0604]
[1727802863374,54.5847,146.61,146.5,17.0644]
[1727802863753,37.535,146.59,146.5,17.0644]
[1727802863970,37.535,146.59,146.49,13.3774]
[1727802863971,6.8246,146.53,146.49,13.3774]
[1727802864274,6.8245,146.53,146.49,6.5512]
[1727802864456,6.8241,146.54,146.49,13.3775]
[1727802864863,6.8243,146.54,146.5,17.0646]
[1727802865250,6.824,146.55,146.5,23.8904]
[1727802865453,17.0511,146.62,146.5,17.0646]
[1727802865653,17.0511,146.62,146.54,6.8236]
[1727802866054,17.0511,146.62,146.53,6.8244]
[1727802866055,6.8222,146.58,146.53,6.8244]
[1727802866357,17.0538,146.6,146.49,23.6167]
[1727802866774,6.8236,146.55,146.5,6.8255]
[1727802867767,6.8236,146.55,146.49,23.6167]
[1727802867768,6.8242,146.54,146.49,30.4428]
[1727802868773,1.15709164,146.57,146.5,6.8259]
[1727802868986,6.8236,146.55,146.49,30.4426]
[1727802869176,1.15709164,146.57,146.47,15.637]
[1727802869363,1.15709164,146.57,146.48,1.36484172]
[1727802869681,6.8218,146.59,146.48,20.0]
[1727802869976,47.3773963,146.65,146.47,15.637]
[1727802869977,17.053,146.61,146.47,15.637]
[1727802870166,6.8231,146.57,146.47,15.637]
[1727802870557,6.8233,146.56,146.51,23.8884]
[1727802871156,17.053,146.61,146.51,17.0631]
[1727802871370,20.0,146.6,146.52,6.8245]
[1727802871569,20.0,146.6,146.51,23.8885]
[1727802871570,6.8232,146.56,146.51,23.8885]
[1727802871787,6.8236,146.55,146.51,17.0631]
[1727802871985,20.0,146.6,146.47,15.637]
[1727802871986,20.0,146.6,146.48,17.0665]
[1727802872285,6.825,146.52,146.48,17.0665]
[1727802872457,6.8254,146.51,146.47,22.4642]
[1727802872778,6.8245,146.53,146.48,6.8264]
[1727802872981,6.8242,146.54,146.5,6.8258]
[1727802873284,20.0,146.59,146.47,49.7735]
[1727802873788,6.8242,146.54,146.5,23.8896]
[1727802873951,37.0548,146.59,146.5,23.8896]
[1727802873952,1.15697643,146.59,146.51,1.36503234]
[1727802874156,6.8243,146.54,146.5,23.8895]
[1727802874555,6.8241,146.54,146.5,23.8895]
[1727802874775,17.0559,146.58,146.5,23.8895]
[1727802874973,6.8245,146.53,146.5,17.064]
[1727802875155,17.0585,146.56,146.47,32.7045]
[1727802875360,6.825,146.52,146.47,39.5317]
[1727802875782,6.825,146.52,146.48,6.8268]
[1727802875982,6.93933258,146.62,146.49,32.6091941]
[1727802876287,6.8202,146.63,146.58,6.8218]
[1727802876595,6.3352,146.65,146.57,17.0557]
[1727802876760,6.8204,146.62,146.57,6.8225]
[1727802877157,6.8202,146.63,146.58,6.8218]
[1727802877388,6.8204,146.62,146.57,23.8784]
[1727802877568,6.3352,146.65,146.57,17.0558]
[1727802877879,6.3352,146.65,146.53,34.1222]
[1727802878090,6.8194,146.64,146.59,6.8215]
[1727802878387,6.8211,146.61,146.57,17.0558]
[1727802878566,6.8211,146.61,146.57,23.8784]
[1727802879083,6.94100813,146.68,146.58,1.36431151]
[1727802879287,6.82,146.63,146.58,6.8218]
[1727802879780,6.8204,146.62,146.57,23.8783]
[1727802880097,6.8213,146.6,146.55,6.8235]
[1727802880686,17.048,146.65,146.51,33.2929]
[1727802880687,20.0,146.61,146.51,33.2929]
[1727802881068,6.8241,146.54,146.51,16.2298]
[1727802881758,6.8237,146.55,146.51,16.2298]
[1727802881964,6.8243,146.54,146.51,16.2298]
[1727802882160,17.0565,146.58,146.48,17.0665]
[1727802882380,6.8248,146.53,146.48,23.893]
[1727802882881,6.8258,146.51,146.47,15.0178]
[1727802883071,6.825,146.52,146.47,15.0178]
[1727802883282,6.825,146.52,146.47,21.8451]
[1727802883698,20.0,146.55,146.47,15.0178]
[1727802883989,17.0588,146.56,146.48,6.8267]
[1727802884163,6.8245,146.53,146.48,6.8267]
[1727802884360,17.0588,146.56,146.47,32.0854]
[1727802884565,6.8256,146.51,146.47,32.0854]
[1727802885084,17.0588,146.56,146.47,38.9127]
[1727802885897,17.0588,146.56,146.47,32.0854]
[1727802886584,6.8254,146.52,146.47,38.9126]
[1727802887261,17.0606,146.54,146.47,15.0178]
[1727802887665,17.0634,146.52,146.46,8.0922865]
[1727802887887,6.8269,146.48,146.46,8.0922865]
[1727802888092,6.8273,146.47,146.46,8.0922865]
[1727802888293,17.0634,146.52,146.46,8.0922865]
[1727802888467,6.8259,146.5,146.46,14.9199865]
[1727802888666,6.826,146.5,146.46,8.0922865]
[1727802889193,20.0,146.54,146.46,8.0922865]
[1727802889194,6.8264,146.49,146.46,8.0922865]
[1727802889365,17.0617,146.53,146.46,8.0922865]
[1727802889571,6.827,146.48,146.46,8.0922865]
[1727802889767,20.0,146.52,146.46,8.0922865]
[1727802890271,6.8271,146.48,146.46,8.0922865]
[1727802890489,37.0635,146.52,146.46,8.0922865]
[1727802890677,6.8265,146.49,146.46,8.0922865]
[1727802890986,20.0,146.52,146.46,8.0922865]
[1727802891195,6.8255,146.51,146.47,6.8272]
[1727802891491,6.825,146.52,146.47,6.8272]
[1727802891664,6.825,146.52,146.46,8.0922865]
[1727802891870,6.825,146.52,146.48,6.8268]
[1727802892070,6.8241,146.54,146.5,6.8258]
[1727802892488,17.0588,146.56,146.47,17.0679]
[1727802892694,6.825,146.53,146.49,6.8263]
[1727802892871,6.8237,146.55,146.5,6.8255]
[1727802893071,17.0583,146.56,146.46,25.1613865]
[1727802893291,6.8262,146.5,146.46,31.9890865]
[1727802893511,6.8257,146.51,146.46,31.9889865]
[1727802893790,17.0606,146.54,146.46,25.1613865]
[1727802894004,6.8251,146.52,146.47,6.827]
[1727802894215,17.0606,146.54,146.47,6.827]
[1727802894379,6.825,146.52,146.48,6.8267]
[1727802894583,6.8248,146.53,146.48,6.8267]
[1727802894808,20.0,146.56,146.48,23.8934]
[1727802895005,20.0,146.56,146.48,17.0667]
[1727802895184,6.8249,146.53,146.48,23.8932]
[1727802895380,6.825,146.52,146.48,6.8267]
[1727802895588,17.0598,146.55,146.47,23.8951]
[1727802895797,6.8257,146.51,146.47,23.8951]
[1727802896491,6.8259,146.5,146.46,14.9198865]
[1727802896887,6.8255,146.51,146.46,14.9196865]
[1727802897090,6.8255,146.51,146.47,6.8273]
[1727802897285,1.15709306,146.55,146.46,8.0922865]
[1727802897507,17.0618,146.53,146.46,8.0922865]
[1727802897693,6.826,146.5,146.46,8.0922865]
[1727802897896,6.8268,146.49,146.46,8.0922865]
[1727802898205,17.064,146.51,146.46,8.0922865]
[1727802898584,6.8248,146.53,146.48,6.8264]
[1727802898800,21.15709306,146.55,146.47,17.0672]
[1727802899004,6.826,146.5,146.47,17.0672]
[1727802899200,6.8246,146.53,146.47,17.0672]
[1727802899408,6.825,146.52,146.48,6.8268]
[1727802899601,6.8246,146.53,146.49,6.8262]
[1727802899786,1.15709306,146.55,146.49,6.8262]
[1727802899787,6.8242,146.54,146.49,6.8262]
[1727802899991,6.8242,146.54,146.5,6.8257]
[1727802900224,6.6113,146.63,146.48,21.9215]
[1727802900511,25.14894359,146.6,146.5,17.0643]
[1727802900691,6.8244,146.54,146.5,17.0643]
[1727802900884,6.8249,146.53,146.48,21.9215]
[1727802901085,6.8258,146.51,146.48,21.9215]
[1727802901598,20.0,146.55,146.48,21.9215]
[1727802901822,20.0,146.53,146.46,8.0922865]
[1727802902026,6.826,146.5,146.46,8.0922865]
[1727802902405,6.8264,146.49,146.46,8.0922865]
[1727802902605,20.0,146.53,146.46,8.0922865]
[1727802902798,6.8267,146.49,146.46,8.0922865]
[1727802903018,6.8273,146.47,146.46,8.0922865]
[1727802903329,6.8262,146.5,146.46,8.0922865]
[1727802903508,20.0,146.54,146.46,8.0922865]
[1727802903707,6.6114,146.59,146.49,17.0655]
[1727802904034,23.98972527,146.62,146.49,16.3104]
[1727802904204,6.8208,146.61,146.56,6.823]
[1727802904627,6.8213,146.6,146.55,23.8817]
[1727802904830,1.15683788,146.64,146.49,50.442]
[1727802904831,1.15683788,146.64,146.58,17.0553]
[1727802905127,6.93662119,146.66,146.58,17.0553]
[1727802905332,6.93662119,146.66,146.57,6.4331]
[1727802905333,6.93662119,146.66,146.61,17.0518]
[1727802905510,1.15616734,146.65,146.57,6.4331]
[1727802905715,6.93662119,146.66,146.57,23.4886]
[1727802905926,6.93662119,146.66,146.57,6.4331]
[1727802906226,9.27770808,146.66,146.56,16.3104]
[1727802906528,34.0876,146.69,146.56,16.3104]
[1727802906529,6.93571117,146.67,146.56,16.3104]
[1727802906735,6.8214,146.6,146.56,16.3104]
[1727802907036,17.051,146.62,146.53,30.2198]
[1727802907209,17.051,146.62,146.53,6.3353]
[1727802907210,20.0,146.61,146.53,6.3353]
[1727802907612,20.0,146.61,146.52,15.3048]
[1727802907831,6.8245,146.53,146.49,6.6479]
[1727802908005,20.0,146.57,146.48,15.3048]
[1727802908205,17.0612,146.54,146.48,15.3048]
[1727802908428,6.8255,146.51,146.46,8.0922865]
[1727802908634,6.8247,146.53,146.47,6.8271]
[1727802908924,20.0,146.59,146.46,40.7014806]
[1727802909159,20.0,146.6,146.49,17.0649]
[1727802909535,20.0,146.6,146.49,23.8912]
[1727802909731,17.0553,146.59,146.47,23.3077]
[1727802909952,6.8264,146.49,146.47,16.4805]
[1727802910330,20.0,146.52,146.46,8.0922865]
[1727802910547,6.8273,146.47,146.46,8.0922865]
[1727802911047,6.8268,146.48,146.46,8.0922865]
[1727802911226,20.0,146.52,146.46,8.0922865]
[1727802911433,6.8268,146.48,146.46,8.0922865]
[1727802911632,6.8261,146.5,146.46,8.0922865]
[1727802912029,20.0,146.52,146.46,8.0922865]
[1727802912250,17.0624,146.53,146.46,8.0922865]
[1727802912251,6.8273,146.47,146.46,8.0922865]
[1727802913640,26.8273,146.47,146.46,8.0922865]
[1727802913835,17.0647,146.51,146.46,8.0922865]
[1727802913836,6.8268,146.49,146.46,8.0922865]
[1727802914035,23.65,146.54,146.46,8.0922865]
[1727802914252,6.5895,146.54,146.46,8.0922865]
[1727802914440,17.0633,146.52,146.46,8.0922865]
[1727802914960,6.8273,146.47,146.46,8.0922865]
[1727802915454,26.8273,146.47,146.46,8.0922865]
[1727802915836,50.604184,146.47,146.46,8.0922865]
[1727802916062,26.8273,146.47,146.46,8.0922865]
[1727802916240,50.604184,146.47,146.46,8.0922865]
[1727802916433,56.872084,146.47,146.46,8.0922865]
[1727802916868,40.03897272,146.47,146.46,8.0922865]
[1727802917158,6.8292,146.43,146.42,0.846113]
[1727802918140,26.8292,146.43,146.42,0.846113]
[1727802919054,50.606084,146.43,146.42,0.846113]
[1727802919357,26.8292,146.43,146.42,0.846113]
[1727802920335,50.606084,146.43,146.42,0.846113]
[1727802920531,26.8292,146.43,146.42,0.846113]
[1727802921149,50.606084,146.43,146.42,0.846113]
[1727802921553,50.606084,146.43,146.42,1.3e-05]
[1727802922056,26.8292,146.43,146.42,1.3e-05]
[1727802924653,47.3092,146.43,146.42,1.3e-05]
[1727802924872,26.8292,146.43,146.42,1.3e-05]
[1727802925653,20.48,146.43,146.4,1.03e-05]
[1727802925933,20.48,146.43,146.3,0.2]
[1727802925934,6.8348,146.31,146.3,1.5667109]
[1727802926273,26.5253,146.39,146.3,0.2]
[1727802926455,6.8339,146.33,146.3,1.5667833]
[1727802926655,6.8334,146.34,146.3,1.5667833]
[1727802926958,6.3515,146.35,146.3,0.2]
[1727802927263,17.0821,146.36,146.3,16.2706]
[1727802927465,6.8342,146.33,146.31,1.36659888]
[1727802927835,6.8338,146.33,146.3,16.2706]
[1727802928035,6.8348,146.31,146.3,0.2]
[1727802928243,17.0821,146.36,146.3,0.2]
[1727802928544,6.8348,146.31,146.3,0.2]
[1727802928744,17.0821,146.36,146.3,0.2]
[1727802928944,6.8347,146.32,146.3,0.2]
[1727802929348,17.0821,146.36,146.3,0.2]
[1727802929349,6.8348,146.31,146.3,0.2]
[1727802931146,6.8344,146.32,146.3,0.2]
[1727802931347,6.8344,146.32,146.31,1.36671401]
[1727802931664,6.8335,146.34,146.32,21.2932]